[Event "Asian Zonal 3.3 Women 2019"]
[Site "Ulaanbaatar"]
[Date "2019.04.12"]
[Round "6.11"]
[White "Mungunzul, Bat-Erdene"]
[Black "Yanjinlkham, Bayarsaikhan"]
[Result "0-1"]
[ECO "A00"]
[WhiteElo "1906"]
[BlackElo "1951"]
[Annotator "NA RC"]
[PlyCount "80"]
[EventDate "2019.04.07"]
[EventType "swiss"]
[EventRounds "9"]
[EventCountry "MGL"]
[SourceTitle "playchess.com"]
[Source "ChessBase"]
[SourceQuality "1"]
[TimeControl "40/5400+30:1800+30"]

1. d4 d5 2. c4 c6 3. Nc3 Nf6 4. Nf3 a6 5. a4 e6 6. Bg5 dxc4 7. Ne5 h6 8. Bxf6 gxf6 9. Nxc4 Bb4 10. Qb3 a5 11. e3 Nd7 12. Be2 Rg8 13. Bf3 Rb8 14. Na3 f5 15. Rd1 Qe7 16. Nc2 Bd6 17. g3 Kf8 18. e4 e5 19. d5 f4 20. Qc4 Nc5 21. Qe2 Rg6 22. Bh5 Rg5 23. Bf3 Bd7 24. Na3 Nb3 25. gxf4 exf4 26. h4 Rg6 27. Nc4 Bc5 28. Qd3 Nd4 29. Bh5 Rg2 30. Rd2 Bg4 31. Bxg4 Rxg4 32. d6 Qe6 33. f3 Rg3 34. Ne2 Nxf3+ 35. Kd1 Nxd2 36. Nxg3 Qxc4 37. Qxd2 Qb3+ 38. Ke2 Qxg3 39. Qxa5 Qe3+ 40. Kd1 Qd3+ 0-1

[Event "Asian Zonal 3.3 Women 2019"]
[Site "Ulaanbaatar"]
[Date "2019.04.12"]
[Round "6.12"]
[White "Doan, Thi Hong Nhung"]
[Black "Tsogzolmaa, Nanjid"]
[Result "1-0"]
[ECO "A00"]
[WhiteElo "1938"]
[BlackElo "1815"]
[Annotator "NA RC"]
[PlyCount "105"]
[EventDate "2019.04.07"]
[EventType "swiss"]
[EventRounds "9"]
[EventCountry "MGL"]
[SourceTitle "playchess.com"]
[Source "ChessBase"]
[SourceQuality "1"]
[TimeControl "40/5400+30:1800+30"]

1. d4 e6 2. c4 Nf6 3. Nf3 d5 4. Nc3 a6 5. cxd5 exd5 6. Qc2 Be6 7. Bg5 Bd6 8. e3 Nbd7 9. Bd3 c6 10. O-O Qc7 11. Bh4 O-O 12. Na4 Bg4 13. Bg3 Bh5 14. b4 Bxg3 15. hxg3 Bg6 16. Nc5 Rfe8 17. Rab1 Bxd3 18. Qxd3 Ne4 19. a4 Nd6 20. Rfc1 Nb6 21. Ng5 f5 22. Qe2 h6 23. Nf3 Nbc4 24. Nd2 Nxd2 25. Qxd2 Qf7 26. Nd3 Nc4 27. Qc3 h5 28. Ne5 Nxe5 29. dxe5 Qe6 30. f4 Qg6 31. Kf2 Re6 32. Rh1 Qf7 33. Qd4 Rc8 34. Rbc1 g6 35. Rc3 Qe7 36. Kf3 a5 37. bxa5 Qd8 38. Rc5 Ra8 39. Qc3 Re7 40. Rb1 Rd7 41. Qd2 g5 42. Rh1 h4 43. gxh4 g4+ 44. Kg3 d4 45. Qa2+ Kf8 46. e6 Rd5 47. Rxd5 cxd5 48. exd4 Qxa5 49. Qa3+ Kg8 50. Rc1 Re8 51. Qe3 Qxa4 52. Rc7 Qa6 53. Qe5 1-0

[Event "Asian Zonal 3.3 Women 2019"]
[Site "Ulaanbaatar"]
[Date "2019.04.12"]
[Round "6.16"]
[White "Anujin, Bat-Amgalan"]
[Black "Urangoo, Kherlenzorig"]
[Result "0-1"]
[ECO "A00"]
[WhiteElo "1407"]
[BlackElo "1475"]
[Annotator "NA RC"]
[PlyCount "136"]
[EventDate "2019.04.07"]
[EventType "swiss"]
[EventRounds "9"]
[EventCountry "MGL"]
[SourceTitle "playchess.com"]
[Source "ChessBase"]
[SourceQuality "1"]
[TimeControl "40/5400+30:1800+30"]

1. d4 d5 2. Bf4 Nf6 3. e3 e6 4. Nf3 c5 5. c3 Nc6 6. Nbd2 Be7 7. Ne5 a6 8. Bd3 Bd6 9. Ndf3 h6 10. a3 Nh5 11. Bg3 Nxg3 12. hxg3 Bxe5 13. Nxe5 Nxe5 14. dxe5 Qc7 15. f4 b5 16. Qg4 g6 17. Qh4 Qe7 18. Rd1 Bb7 19. Qxe7+ Kxe7 20. Kf2 Rad8 21. Be2 f6 22. exf6+ Kxf6 23. Rd2 e5 24. Rhd1 Rde8 25. Bf3 e4 26. Be2 Bc6 27. b3 c4 28. bxc4 bxc4 29. Rb2 Rb8 30. Rdb1 Rb5 31. a4 Rxb2 32. Rxb2 Bxa4 33. Rb6+ Kg7 34. Rxa6 Bc2 35. Rd6 Rb8 36. Rxd5 Bd3 37. Bxd3 cxd3 38. c4 Rb2+ 39. Kf1 Rb1+ 40. Kf2 Rb2+ 41. Kf1 Rb1+ 42. Kf2 Rc1 43. Rd4 h5 44. c5 Kf6 45. c6 Rc2+ 46. Kf1 Rc1+ 47. Kf2 Kf5 48. Rd5+ Kf6 49. Rd4 Kf5 50. Rd5+ Kf6 51. Rd4 Rc2+ 52. Kf1 Rxc6 53. Ke1 Rc1+ 54. Kf2 Rc2+ 55. Kf1 g5 56. Rd6+ Kf5 57. Rd5+ Ke6 58. Re5+ Kf6 59. Rd5 gxf4 60. gxf4 Re2 61. Rxh5 Rxe3 62. Rd5 Ke6 63. Ra5 Re2 64. Ra3 Rc2 65. Ke1 Kf5 66. Ra4 Rxg2 67. Kf1 Rc2 68. Ke1 Kxf4 0-1

[Event "Asian Zonal 3.3 Women 2019"]
[Site "Ulaanbaatar"]
[Date "2019.04.12"]
[Round "6.17"]
[White "Enkhnasan, Namjiljav"]
[Black "Udval, Enkhsaikhan"]
[Result "0-1"]
[ECO "A00"]
[WhiteElo "1610"]
[BlackElo "1761"]
[Annotator "NA RC"]
[PlyCount "72"]
[EventDate "2019.04.07"]
[EventType "swiss"]
[EventRounds "9"]
[EventCountry "MGL"]
[SourceTitle "playchess.com"]
[Source "ChessBase"]
[SourceQuality "1"]
[TimeControl "40/5400+30:1800+30"]

1. d4 d5 2. c4 c6 3. e3 Nf6 4. Nf3 Nbd7 5. Bd3 e6 6. O-O dxc4 7. Bxc4 b5 8. Bd3 Bd6 9. a4 b4 10. Nbd2 Bb7 11. Nc4 Be7 12. Nce5 O-O 13. b3 c5 14. Bb2 a5 15. Rc1 Nxe5 16. Nxe5 Rc8 17. f3 Bd6 18. Nc4 Bb8 19. dxc5 Rxc5 20. Bd4 Rd5 21. Be4 Nxe4 22. fxe4 Qh4 23. e5 Ba7 24. Rf4 Qxf4 25. exf4 Rxd4 26. Kh1 Rxd1+ 27. Rxd1 Bd5 28. Nxa5 Be3 29. Rf1 Ra8 30. Nc4 Bxc4 31. bxc4 Rxa4 32. Rd1 h6 33. g3 b3 34. Rb1 Rb4 35. Kg2 b2 36. Kf3 Bc1 0-1

[Event "Asian Zonal 3.3 Women 2019"]
[Site "Ulaanbaatar"]
[Date "2019.04.12"]
[Round "6.18"]
[White "Ng, Sau Wai"]
[Black "Margadgua, Erdenebayar"]
[Result "0-1"]
[ECO "A00"]
[WhiteElo "1154"]
[BlackElo "1585"]
[Annotator "NA RC"]
[PlyCount "48"]
[EventDate "2019.04.07"]
[EventType "swiss"]
[EventRounds "9"]
[EventCountry "MGL"]
[SourceTitle "playchess.com"]
[Source "ChessBase"]
[SourceQuality "1"]
[TimeControl "40/5400+30:1800+30"]

1. Nf3 d5 2. g3 c6 3. Bg2 Nf6 4. d3 Bg4 5. O-O Nbd7 6. Nbd2 e5 7. e4 Bd6 8. c4 Nc5 9. Qc2 dxe4 10. Nxe4 Nfxe4 11. dxe4 Qf6 12. Bg5 Qg6 13. Be3 Qxe4 14. Ne1 Qxc2 15. Nxc2 O-O 16. f4 Nd3 17. b3 Be2 18. Rfb1 exf4 19. Bxf4 Nxf4 20. gxf4 Bd3 21. Rd1 Bc5+ 22. Kh1 Bxc2 23. Rd7 Rab8 24. h3 Rfd8 0-1

[Event "Asian Zonal 3.3 Women 2019"]
[Site "Ulaanbaatar"]
[Date "2019.04.12"]
[Round "6.19"]
[White "Khanyl, Chuluuntuya"]
[Black "Lkhagvajed, Gantulga"]
[Result "0-1"]
[ECO "A00"]
[WhiteElo "1375"]
[BlackElo "1344"]
[Annotator "NA RC"]
[PlyCount "66"]
[EventDate "2019.04.07"]
[EventType "swiss"]
[EventRounds "9"]
[EventCountry "MGL"]
[SourceTitle "playchess.com"]
[Source "ChessBase"]
[SourceQuality "1"]
[TimeControl "40/5400+30:1800+30"]

1. e4 c5 2. Nf3 Nc6 3. d4 cxd4 4. Nxd4 Nf6 5. Nc3 e5 6. Ndb5 d6 7. a4 a6 8. Na3 Be7 9. Bg5 Be6 10. Nc4 Rc8 11. Bxf6 gxf6 12. Ne3 Nd4 13. Bd3 Qd7 14. O-O f5 15. exf5 Nxf5 16. Bxf5 Bxf5 17. f4 e4 18. Ncd5 Qe6 19. Qd4 Rg8 20. Nxe7 Kxe7 21. Nd5+ Kf8 22. Nf6 Rg7 23. Nh5 Rg6 24. c3 Qc4 25. Qd2 Qc5+ 26. Kh1 e3 27. Qe1 Bd3 28. Rf3 Qxh5 29. Qxe3 Bf5 30. Qd4 Kg8 31. Qd5 Re8 32. Qxb7 Be4 33. Qd7 Bxf3 0-1

[Event "Asian Zonal 3.3 Women 2019"]
[Site "Ulaanbaatar"]
[Date "2019.04.13"]
[Round "7.1"]
[White "Munguntuul, Batkhuyag"]
[Black "Munkhzul, Turmunkh"]
[Result "0-1"]
[ECO "B94"]
[WhiteElo "2415"]
[BlackElo "2348"]
[Annotator "ChessBase"]
[PlyCount "80"]
[EventDate "2019.04.07"]
[EventType "swiss"]
[EventRounds "9"]
[EventCountry "MGL"]
[SourceTitle "playchess.com"]
[Source "ChessBase"]
[SourceQuality "1"]
[TimeControl "40/5400+30:1800+30"]

1. e4 {[%emt 0:00:00]} c5 {[%emt 0:00:20]} 2. Nf3 {[%emt 0:00:00]} d6 {[%emt 0:00:35]} 3. d4 {[%emt 0:00:00]} cxd4 {[%emt 0:00:09]} 4. Nxd4 {[%emt 0:00:00]} Nf6 {[%emt 0:00:20]} 5. Nc3 {[%emt 0:00:00]} a6 {[%emt 0:00:32]} 6. Nb3 {[%emt 0:00:34]} e5 {[%emt 0:04:54]} 7. Bg5 {[%emt 0:05:41]} Be6 {[%emt 0:03:39]} 8. Bxf6 {[%emt 0:02:08]} gxf6 {[%emt 0:07:06]} 9. Nd5 {[%emt 0:03:38]} Nd7 {[%emt 0:02:05]} 10. Be2 {[%emt 0:10:12]} Nb6 {[%emt 0:05:54]} 11. O-O {[%emt 0:18:25]} Nxd5 {[%emt 0:07:09]} 12. exd5 {[%emt 0:00:37]} Bd7 {[%emt 0:03:11]} 13. Bd3 {[%emt 0:08:01]} f5 {[%emt 0:03:46]} 14. Qh5 {[%emt 0:07:19]} Qf6 {[%emt 0:04:33]} 15. Na5 {[%emt 0:01:43]} Rb8 {[%emt 0:12:15]} 16. a4 {[%emt 0:12:15]} Rg8 {[%emt 0:08:38]} 17. Qe2 {[%emt 0:01:58]} Be7 {[%emt 0:02:53]} 18. c3 {[%emt 0:08:39]} Bd8 {[%emt 0:10:44]} 19. Nc4 {[%emt 0:00:43]} Rc8 {[%emt 0:00:48]} 20. Kh1 {[%emt 0:04:28]} Kf8 {[%emt 0:00:46]} 21. f4 {[%emt 0:04:16]} e4 {[%emt 0:02:33]} 22. Bc2 {[%emt 0:00:02]} h5 {[%emt 0:04:37]} 23. Rad1 {[%emt 0:01:48]} h4 {[%emt 0:01:02]} 24. Rd4 {[%emt 0:00:28]} b5 {[%emt 0:01:42]} 25. Na3 {[%emt 0:02:04]} Bb6 {[%emt 0:00:58]} 26. Rd2 {[%emt 0:00:08]} Qg6 {[%emt 0:02:29]} 27. axb5 {[%emt 0:00:21]} axb5 {[%emt 0:00:50]} 28. Bd1 {[%emt 0:01:42]} Re8 {[%emt 0:04:05]} 29. Nxb5 {[%emt 0:01:33]} Bf2 {[%emt 0:00:36]} 30. Rg1 {[%emt 0:02:59]} Bxg1 {[%emt 0:02:53]} 31. Kxg1 {[%emt 0:00:02]} e3 {[%emt 0:00:22]} 32. Rc2 {[%emt 0:00:11]} Bxb5 {[%emt 0:00:49]} 33. Qxb5 {[%emt 0:00:12]} Qh6 {[%emt 0:01:12]} 34. Qc4 {[%emt 0:01:57]} Re4 {[%emt 0:00:42]} 35. Qc8+ {[%emt 0:00:09]} Kg7 {[%emt 0:00:10]} 36. Qxf5 {[%emt 0:00:02]} Rxf4 {[%emt 0:01:07]} 37. Qd3 {[%emt 0:00:22]} Qf6 {[%emt 0:00:44]} 38. Bf3 {[%emt 0:00:19]} Kh8 {[%emt 0:01:05]} 39. Be2 {[%emt 0:03:19]} Rf2 {[%emt 0:00:06]} 40. Bf1 {[%emt 0:00:00]} e2 {[%emt 0:00:00]} 0-1

[Event "Asian Zonal 3.3 Women 2019"]
[Site "Ulaanbaatar"]
[Date "2019.04.13"]
[Round "7.4"]
[White "Aulia, Medina Warda"]
[Black "Altantuya, Boldbaatar"]
[Result "1-0"]
[ECO "C06"]
[WhiteElo "2362"]
[BlackElo "2223"]
[Annotator "ChessBase"]
[PlyCount "147"]
[EventDate "2019.04.07"]
[EventType "swiss"]
[EventRounds "9"]
[EventCountry "MGL"]
[SourceTitle "playchess.com"]
[Source "ChessBase"]
[SourceQuality "1"]
[TimeControl "40/5400+30:1800+30"]

1. e4 {[%emt 0:00:00]} e6 {[%emt 0:00:00]} 2. d4 {[%emt 0:00:00]} d5 {[%emt 0:00:00]} 3. Nd2 {[%emt 0:00:00]} Nf6 {[%emt 0:00:00]} 4. e5 {[%emt 0:00:12]} Nfd7 {[%emt 0:00:00]} 5. Bd3 {[%emt 0:00:06]} c5 {[%emt 0:00:14]} 6. c3 {[%emt 0:00:04]} Nc6 {[%emt 0:00:23]} 7. Ne2 {[%emt 0:00:05]} Qb6 {[%emt 0:00:16]} 8. Nf3 {[%emt 0:01:08]} cxd4 {[%emt 0:00:36]} 9. cxd4 {[%emt 0:00:25]} Bb4+ {[%emt 0:00:03]} 10. Bd2 {[%emt 0:04:09]} f6 {[%emt 0:00:34]} 11. exf6 {[%emt 0:01:16]} Nxf6 {[%emt 0:00:12]} 12. O-O {[%emt 0:00:07]} O-O {[%emt 0:00:55]} 13. a3 {[%emt 0:05:52]} Bd6 {[%emt 0:01:00]} 14. Bc3 {[%emt 0:00:48]} Re8 {[%emt 0:07:40]} 15. Ne5 {[%emt 0:06:34]} Bd7 {[%emt 0:12:08]} 16. Ng3 {[%emt 0:00:43]} Re7 {[%emt 0:04:18]} 17. Kh1 {[%emt 0:09:56]} Rf8 {[%emt 0:11:34]} 18. f4 {[%emt 0:00:08]} a5 {[%emt 0:01:39]} 19. Qd2 {[%emt 0:07:54]} a4 {[%emt 0:05:37]} 20. Rae1 {[%emt 0:01:05]} Qc7 {[%emt 0:03:08]} 21. Qd1 {[%emt 0:04:28]} Na7 {[%emt 0:09:34]} 22. Qe2 {[%emt 0:05:47]} b5 {[%emt 0:01:53]} 23. Qd2 {[%emt 0:02:11]} Nc6 {[%emt 0:03:37]} 24. Qe2 {[%emt 0:11:34]} Na7 {[%emt 0:01:45]} 25. Nxd7 {[%emt 0:05:01]} Qxd7 {[%emt 0:00:33]} 26. Nh5 {[%emt 0:00:05]} Qb7 {[%emt 0:04:25]} 27. Bc2 {[%emt 0:09:46]} Nc6 {[%emt 0:01:00]} 28. Ng3 {[%emt 0:02:07]} Qb8 {[%emt 0:04:37]} 29. Qd2 {[%emt 0:00:18]} Ne8 {[%emt 0:02:01]} 30. Ne2 {[%emt 0:00:29]} Ref7 {[%emt 0:02:26]} 31. g3 {[%emt 0:01:48]} g6 {[%emt 0:05:47]} 32. Ng1 {[%emt 0:00:20]} Ng7 {[%emt 0:00:59]} 33. Nf3 {[%emt 0:00:03]} Be7 {[%emt 0:01:35]} 34. Kg2 {[%emt 0:01:54]} Qb6 {[%emt 0:02:05]} 35. h4 {[%emt 0:03:46]} Qb7 {[%emt 0:07:56]} 36. Nh2 {[%emt 0:01:55]} Kh8 {[%emt 0:03:34]} 37. Ng4 {[%emt 0:00:33]} Bd6 {[%emt 0:01:04]} 38. Nh2 {[%emt 0:00:39]} Qd7 {[%emt 0:01:13]} 39. Nf3 {[%emt 0:00:13]} Be7 {[%emt 0:00:20]} 40. Rh1 {[%emt 0:00:00]} Rb8 {[%emt 0:00:00]} 41. Ng5 {[%emt 0:03:02]} Bxg5 {[%emt 0:02:44]} 42. hxg5 {[%emt 0:01:51]} Kg8 {[%emt 0:01:02]} 43. Rh2 {[%emt 0:03:05]} Nf5 {[%emt 0:03:19]} 44. Reh1 {[%emt 0:00:36]} Qb7 {[%emt 0:02:19]} 45. g4 {[%emt 0:02:15]} Nfe7 {[%emt 0:00:25]} 46. Kg3 {[%emt 0:06:15]} Qc7 {[%emt 0:03:49]} 47. Re1 {[%emt 0:00:52]} Rbf8 {[%emt 0:01:22]} 48. Rf2 {[%emt 0:00:12]} Qd6 {[%emt 0:00:54]} 49. Qe3 {[%emt 0:00:47]} Nd8 {[%emt 0:02:56]} 50. Bb4 {[%emt 0:02:11]} Qb8 {[%emt 0:05:03]} 51. Bc5 {[%emt 0:02:58]} Re8 {[%emt 0:06:21]} 52. Rh1 {[%emt 0:03:04]} Nb7 {[%emt 0:01:05]} 53. Bb4 {[%emt 0:01:22]} Nc6 {[%emt 0:01:12]} 54. Rfh2 {[%emt 0:03:05]} Rg7 {[%emt 0:00:52]} 55. Bc3 {[%emt 0:02:09]} Nd6 {[%emt 0:00:39]} 56. Kg2 {[%emt 0:01:09]} Nc4 {[%emt 0:00:58]} 57. Qg3 {[%emt 0:00:04]} Qc7 {[%emt 0:01:01]} 58. Re1 {[%emt 0:00:22]} Ree7 {[%emt 0:01:53]} 59. Rhh1 {[%emt 0:01:33]} Nd6 {[%emt 0:01:01]} 60. Re2 {[%emt 0:00:51]} Qd7 {[%emt 0:01:32]} 61. Rhe1 {[%emt 0:01:08]} Rgf7 {[%emt 0:00:29]} 62. Bd3 {[%emt 0:02:50]} Nc4 {[%emt 0:00:51]} 63. Rh1 {[%emt 0:04:04]} Qd6 {[%emt 0:00:54]} 64. Rf2 {[%emt 0:00:07]} b4 {[%emt 0:00:24]} 65. axb4 {[%emt 0:01:15]} Nxb4 {[%emt 0:00:04]} 66. Be2 {[%emt 0:02:54]} Rb7 {[%emt 0:01:09]} 67. Ra1 {[%emt 0:02:21]} Nb6 {[%emt 0:01:36]} 68. Bb5 {[%emt 0:00:36]} Ra7 {[%emt 0:00:46]} 69. f5 {[%emt 0:00:26]} Qxg3+ {[%emt 0:00:31]} 70. Kxg3 {[%emt 0:00:03]} Na6 {[%emt 0:00:29]} 71. fxe6 {[%emt 0:00:19]} Rxf2 {[%emt 0:00:20]} 72. Kxf2 {[%emt 0:00:03]} Nc7 {[%emt 0:00:20]} 73. Bd7 {[%emt 0:00:56]} Nxd7 {[%emt 0:00:55]} 74. exd7 {[%emt 0:00:04]} 1-0

[Event "Asian Zonal 3.3 Women 2019"]
[Site "Ulaanbaatar"]
[Date "2019.04.13"]
[Round "7.5"]
[White "Hoang, Thi Bao Tram"]
[Black "Nomindalai Tumurbaatar"]
[Result "1/2-1/2"]
[ECO "A41"]
[WhiteElo "2298"]
[BlackElo "1958"]
[Annotator "ChessBase"]
[PlyCount "129"]
[EventDate "2019.04.07"]
[EventType "swiss"]
[EventRounds "9"]
[EventCountry "MGL"]
[SourceTitle "playchess.com"]
[Source "ChessBase"]
[SourceQuality "1"]
[TimeControl "40/5400+30:1800+30"]

1. d4 {[%emt 0:00:00]} d6 {[%emt 0:00:00]} 2. c4 {[%emt 0:01:00]} e5 {[%emt 0:00:15]} 3. Nf3 {[%emt 0:02:45]} e4 {[%emt 0:00:43]} 4. Ng5 {[%emt 0:00:48]} f5 {[%emt 0:01:16]} 5. g3 {[%emt 0:00:30]} Nf6 {[%emt 0:02:28]} 6. Bg2 {[%emt 0:00:39]} g6 {[%emt 0:01:45]} 7. Nc3 {[%emt 0:05:59]} Bg7 {[%emt 0:01:54]} 8. h4 {[%emt 0:02:51]} h6 {[%emt 0:07:15]} 9. Nh3 {[%emt 0:00:26]} Be6 {[%emt 0:00:14]} 10. Qb3 {[%emt 0:04:43]} Qc8 {[%emt 0:02:12]} 11. f3 {[%emt 0:06:23]} exf3 {[%emt 0:02:43]} 12. Bxf3 {[%emt 0:00:13]} c6 {[%emt 0:03:13]} 13. d5 {[%emt 0:05:51]} Bf7 {[%emt 0:18:32]} 14. Bf4 {[%emt 0:01:35]} O-O {[%emt 0:07:35]} 15. Bxd6 {[%emt 0:03:19]} Re8 {[%emt 0:00:26]} 16. Rd1 {[%emt 0:02:09]} Nbd7 {[%emt 0:07:08]} 17. Nf2 {[%emt 0:09:27]} Ne5 {[%emt 0:10:47]} 18. Bg2 {[%emt 0:04:27]} Nh5 {[%emt 0:10:04]} 19. Nb1 {[%emt 0:07:24]} b5 {[%emt 0:03:30]} 20. Nd2 {[%emt 0:04:18]} bxc4 {[%emt 0:02:36]} 21. Nxc4 {[%emt 0:00:57]} Nxc4 {[%emt 0:00:09]} 22. Qxc4 {[%emt 0:00:14]} cxd5 {[%emt 0:00:39]} 23. Qd3 {[%emt 0:00:39]} Bxb2 {[%emt 0:04:26]} 24. Bxd5 {[%emt 0:10:42]} Bxd5 {[%emt 0:01:34]} 25. Qxd5+ {[%emt 0:00:07]} Qe6 {[%emt 0:00:03]} 26. Qd3 {[%emt 0:05:47]} Rad8 {[%emt 0:02:30]} 27. Qb3 {[%emt 0:05:24]} Qxb3 {[%emt 0:00:43]} 28. axb3 {[%emt 0:00:09]} Bc3+ {[%emt 0:00:03]} 29. Kf1 {[%emt 0:00:06]} Rxd6 {[%emt 0:05:04]} 30. Rxd6 {[%emt 0:00:09]} Nxg3+ {[%emt 0:00:03]} 31. Kg2 {[%emt 0:00:34]} Nxh1 {[%emt 0:00:05]} 32. Nxh1 {[%emt 0:00:07]} Rxe2+ {[%emt 0:01:48]} 33. Kf3 {[%emt 0:00:24]} Rh2 {[%emt 0:01:02]} 34. Ng3 {[%emt 0:05:07]} Be5 {[%emt 0:03:02]} 35. Re6 {[%emt 0:00:25]} Bd4 {[%emt 0:00:51]} 36. Ne2 {[%emt 0:01:28]} Rh3+ {[%emt 0:00:06]} 37. Kg2 {[%emt 0:00:46]} Rxh4 {[%emt 0:00:07]} 38. Nxd4 {[%emt 0:02:34]} Rg4+ {[%emt 0:00:48]} 39. Kf2 {[%emt 0:02:39]} Rxd4 {[%emt 0:00:33]} 40. Rxg6+ {[%emt 0:00:00]} Kh7 {[%emt 0:00:00]} 41. Rf6 {[%emt 0:00:17]} Rf4+ {[%emt 0:00:24]} 42. Kg3 {[%emt 0:03:10]} Rb4 {[%emt 0:02:08]} 43. Rf7+ {[%emt 0:00:29]} Kg6 {[%emt 0:00:05]} 44. Rxa7 {[%emt 0:00:05]} Rxb3+ {[%emt 0:00:04]} 45. Kf4 {[%emt 0:00:10]} Rb4+ {[%emt 0:00:54]} 46. Kf3 {[%emt 0:01:16]} Rb1 {[%emt 0:08:18]} 47. Ra8 {[%emt 0:02:35]} Rf1+ {[%emt 0:00:19]} 48. Kg2 {[%emt 0:00:18]} Rf4 {[%emt 0:00:18]} 49. Kg3 {[%emt 0:03:18]} Rg4+ {[%emt 0:00:07]} 50. Kf3 {[%emt 0:00:13]} h5 {[%emt 0:02:19]} 51. Rg8+ {[%emt 0:02:59]} Kf6 {[%emt 0:00:07]} 52. Rf8+ {[%emt 0:01:22]} Kg5 {[%emt 0:00:06]} 53. Rg8+ {[%emt 0:00:21]} Kh4 {[%emt 0:00:08]} 54. Rf8 {[%emt 0:00:08]} Rg5 {[%emt 0:01:10]} 55. Rf7 {[%emt 0:03:50]} Kh3 {[%emt 0:00:17]} 56. Rh7 {[%emt 0:02:27]} h4 {[%emt 0:00:46]} 57. Kf4 {[%emt 0:00:20]} Rg4+ {[%emt 0:00:07]} 58. Kf3 {[%emt 0:01:38]} Kh2 {[%emt 0:03:39]} 59. Rh5 {[%emt 0:01:04]} Kg1 {[%emt 0:01:44]} 60. Rxf5 {[%emt 0:00:34]} Rg3+ {[%emt 0:00:07]} 61. Ke2 {[%emt 0:02:57]} h3 {[%emt 0:04:06]} 62. Rf1+ {[%emt 0:00:46]} Kh2 {[%emt 0:00:04]} 63. Rf8 {[%emt 0:00:31]} Kg2 {[%emt 0:01:38]} 64. Rf2+ {[%emt 0:00:10]} Kh1 {[%emt 0:00:04]} 65. Rf8 {[%emt 0:00:13]} 1/2-1/2

[Event "Asian Zonal 3.3 Women 2019"]
[Site "Ulaanbaatar"]
[Date "2019.04.13"]
[Round "7.6"]
[White "Nguyen, Thi Thanh An"]
[Black "Pham, Bich Ngoc"]
[Result "*"]
[ECO "B00"]
[WhiteElo "2264"]
[BlackElo "2160"]
[Annotator "NA"]
[PlyCount "61"]
[EventDate "2019.04.07"]
[EventType "swiss"]
[EventRounds "9"]
[EventCountry "MGL"]
[SourceTitle "playchess.com"]
[Source "ChessBase"]
[SourceQuality "1"]
[TimeControl "40/5400+30:1800+30"]

{[%evp 9,61,47,79,86,82,88,94,62,61,63,44,29,33,29,42,25,93,83,103,110,98,115,112,91,102,94,137,100,195,133,133,137,150,141,294,173,203,214,200,197,353,110,712,729,1065,1060,29990,29991,29992,29993,29995,29996,29996,29997]} 1. d4 {[%emt 0:00:00]} d6 {[%emt 0:00:19]} 2. e4 {[%emt 0:01:53]} Nc6 {[%emt 0:01:30]} 3. d5 {[%emt 0:04:22]} Ne5 {[%emt 0:00:15]} (3... Nb8 4. c4 Nf6 5. Nc3 g6 6. h3 Bg7 7. Nf3 O-O 8. Bd3 e5 9. dxe6 Bxe6 10. O-O Nc6 11. Re1 Re8 12. Bf4 Nd7 13. Bf1 Nde5 14. Nd5 Nxf3+ 15. Qxf3 Ne5 {1-0 (40) Perez Ponsa,F (2553)-Shabalov,A (2544) chess.com INT 2018}) 4. Be2 {[%emt 0:00:06]} Nf6 {[%emt 0:07:36]} 5. Nc3 {[%emt 0:00:10]} e6 {[%emt 0:02:35]} 6. f4 {[%emt 0:03:52] B00: Queen's Fianchetto Defence, Nimzowitsch Defence} Ng6 {[%emt 0:00:18]} 7. dxe6 {[%emt 0:00:15]} fxe6 {[%emt 0:00:14]} 8. Nf3 {[%emt 0:00:14] White is better.} Be7 {[%emt 0:06:11]} 9. O-O $146 {[%emt 0:03:57]} ({Predecessor:} 9. Ng5 O-O 10. Bc4 d5 11. exd5 Nxd5 12. Nxd5 Bxg5 13. fxg5 exd5 14. Qxd5+ Qxd5 15. Bxd5+ {1-0 (60) Burnett,J (2105)-Flores,M (2027) Warwick 2018}) 9... O-O {[%emt 0:00:11]} 10. g3 {[%emt 0:00:35]} d5 {[%emt 0:01:56]} 11. Bd3 {[%emt 0:09:57]} c5 {[%emt 0:17:00]} 12. e5 {[%emt 0:03:13]} Nd7 {[%emt 0:03:22]} (12... Ng4 $11) 13. h4 $36 {[%emt 0:11:24] White is on the roll.} c4 {[%emt 0:03:01]} 14. Bxg6 $1 {[%emt 0:04:07]} hxg6 {[%emt 0:00:21]} 15. Be3 {[%emt 0:00:10]} Nb8 {[%emt 0:02:43]} 16. Qe2 {[%emt 0:02:52]} Nc6 {[%emt 0:00:20]} 17. Rad1 {[%emt 0:00:06]} Qa5 {[%emt 0:00:31]} 18. a3 {[%emt 0:01:41]} b5 {[%emt 0:01:09]} (18... Bd7 $16) 19. Nd4 {[%emt 0:01:18]} ({White should play} 19. h5 $1 $18 {[%cal Rh5g6]} gxh5 20. Ng5) 19... Nxd4 {[%emt 0:00:38]} 20. Bxd4 {[%emt 0:00:14]} ({But not} 20. Rxd4 $6 Bc5 $14) 20... b4 {[%emt 0:01:48]} 21. axb4 {[%emt 0:00:12]} Qxb4 $2 {[%emt 0:00:19] [#]} (21... Bxb4 $16 {is a better defense.} 22. Qg4 Qc7) 22. Qg4 {[%emt 0:06:52]} (22. h5 $142 $1 {[%cal Rh5g6]} g5 {[#]} 23. h6 $1 {[%mdl 512]}) 22... Bc5 {[%emt 0:00:25]} 23. Ne2 {[%emt 0:00:29]} ({Less strong is} 23. Qxg6 Bxd4+ 24. Rxd4 Qxb2 $14) 23... Bxd4+ {[%emt 0:02:24]} 24. Nxd4 {[%emt 0:00:05]} Qxb2 $2 {[%emt 0:00:46]} (24... Qe7 25. Qxg6 Rb8) 25. Qxg6 $2 {[%emt 0:00:08]} (25. h5 $18 {is more deadly.} gxh5 26. Qxh5) 25... a5 $2 {[%emt 0:03:52]} (25... Qb7 $16) 26. Nf3 $18 {[%emt 0:05:24]} Qb6+ {[%emt 0:12:36]} 27. Kh2 {[%emt 0:01:46]} Rd8 {[%emt 0:02:16]} 28. Ng5 {[%emt 0:01:49] White mates.} Ra7 {[%emt 0:00:14] [#]} 29. f5 $1 {[%emt 0:02:31]} Qe3 {[%emt 0:03:01]} (29... exf5 30. Qxb6) 30. Qh7+ {[%emt 0:01:03]} Kf8 {[%emt 0:00:05]} 31. fxe6+ {[%emt 0:00:08] Discovered Attack. Accuracy: White = 70%, Black = 23%.} *

[Event "Asian Zonal 3.3 Women 2019"]
[Site "Ulaanbaatar"]
[Date "2019.04.13"]
[Round "7.14"]
[White "Urangoo, Kherlenzorig"]
[Black "Mungunzul, Bat-Erdene"]
[Result "0-1"]
[ECO "A00"]
[WhiteElo "1475"]
[BlackElo "1906"]
[Annotator "NA RC"]
[PlyCount "124"]
[EventDate "2019.04.07"]
[EventType "swiss"]
[EventRounds "9"]
[EventCountry "MGL"]
[SourceTitle "playchess.com"]
[Source "ChessBase"]
[SourceQuality "1"]
[TimeControl "40/5400+30:1800+30"]

1. e4 e5 2. Nf3 Nc6 3. d4 exd4 4. Nxd4 Bc5 5. Nb3 Bb6 6. a4 a6 7. a5 Ba7 8. Nc3 d6 9. Qe2 Be6 10. g3 Nge7 11. Nd5 Qd7 12. Nxe7 Qxe7 13. Bg2 Qf6 14. O-O Ne5 15. Nd2 Bg4 16. Qe1 Bc5 17. Kh1 Nf3 18. Nxf3 Bxf3 19. c3 O-O 20. Qd2 Rfe8 21. Qd3 Bxg2+ 22. Kxg2 Qe6 23. b4 Ba7 24. f3 Rad8 25. Re1 f6 26. Bd2 Qf7 27. Rad1 g6 28. Qd5 c6 29. Qxf7+ Kxf7 30. Be3 Bb8 31. Bd4 Bc7 32. Re2 Re7 33. Rde1 Rc8 34. Ra1 Bd8 35. Kf2 Ke6 36. f4 Rd7 37. Rd2 f5 38. exf5+ gxf5 39. Be3 Bf6 40. Re1 Kf7 41. Bd4 c5 42. Bxf6 Kxf6 43. Red1 cxb4 44. cxb4 Rc6 45. h3 h5 46. Rd3 Kf7 47. Kf3 Rc4 48. Rd5 Ke6 49. R5d4 Rxd4 50. Rxd4 Rc7 51. Rd3 Rc1 52. g4 hxg4+ 53. hxg4 Rf1+ 54. Kg3 Rg1+ 55. Kf3 Rxg4 56. b5 Rg1 57. b6 Ra1 58. Rc3 Rxa5 59. Rc7 Kd5 60. Rxb7 Kc6 61. Rb8 Rb5 62. b7 Rxb7 0-1